Cogmind - Beta 17 @@@ ROGUE MODE // 2026.07.17 @ 22:44:17 Player: IsAway Result: Self-destructed Performance ------------- Evolutions (1) 500 Regions Visited (3) 600 Robots Destroyed (20) 100 Value Destroyed (540) 540 Prototype IDs (0) 0 Alien Tech Used (0) 0 Bonus (0) 0 TOTAL SCORE: 1740 Bonus ------- None Cogmind --------- Core Integrity 296/400 Matter 221/300 Energy 125/125 System Corruption 3% Temperature Cool (0) Movement Core (200) Ox3 Location -9/Mines Parts ------- > --- POWER (2) -------- Light Ion Engine > --- PROPULSION (3) --- Aluminum Leg Aluminum Leg Aluminum Leg > --- UTILITY (2) ------ Small Storage Unit Hacking Suite > --- WEAPON (2) ------- Particle Gun > --- INVENTORY (8) ---- Aluminum Leg Aluminum Leg Aluminum Leg Improved Heat Sink Small Laser Small Laser Rocket Launcher Peak State ------------ > --- POWER ------------ Light Ion Engine Light Ion Engine > --- PROPULSION ------- Aluminum Leg Aluminum Leg Aluminum Leg > --- UTILITY ---------- Small Storage Unit Hacking Suite > --- WEAPON ----------- Particle Gun Rocket Launcher > --- INVENTORY -------- Light Ion Engine Aluminum Leg Aluminum Leg Aluminum Leg Improved Heat Sink Small Laser Small Laser Mining Laser [Rating: 14] Favorites ----------- Power Light Ion Engine Engine Light Ion Engine Power Core Light Nuclear Core Propulsion Aluminum Leg Treads Light Treads Leg Aluminum Leg Hover Unit Hover Unit Utility Small Storage Unit Device Improved Heat Sink Storage Small Storage Unit Hackware Hacking Suite Weapon Particle Gun Energy Gun Particle Gun Ballistic Gun Assault Rifle Launcher Rocket Launcher Special Weapon Mining Laser Build | -11 -10 -9 -9 ------- Run | Yrd Mat Mat Min Slots Evolved 2 | . . 2 . Power 1 | . . 1 . Propulsion 1 | . . 1 . Utility . | . . . . Weapon . | . . . . Parts Attached 25 | 7 10 3 5 Power 4 | 1 2 . 1 Engine 3 | 1 1 . 1 Core 1 | . 1 . . Reactor . | . . . . Propulsion 11 | 3 3 3 2 Treads 2 | 2 . . . Leg 6 | 1 1 2 2 Wheel . | . . . . Hover 3 | . 2 1 . Flight . | . . . . Utility 3 | 1 2 . . Device 1 | . 1 . . Storage 1 | 1 . . . Processor . | . . . . Hackware 1 | . 1 . . Protection . | . . . . Artifact . | . . . . Weapon 7 | 2 3 . 2 Energy Gun 3 | . 3 . . Energy Cannon . | . . . . Ballistic Gun 2 | 2 . . . Ballistic Cannon . | . . . . Launcher 1 | . . . 1 Special Weapon 1 | . . . 1 Impact Weapon . | . . . . Slashing Weapon . | . . . . Piercing Weapon . | . . . . Special Melee Weapon . | . . . . Unidentified Prototypes . | . . . . Parts Lost 6 | . . 2 4 Power 2 | . . . 2 Propulsion 3 | . . 2 1 Utility . | . . . . Weapon 1 | . . . 1 Highest Loss Streak 2 | . . 2 2 To Critical Strikes . | . . . . Average Backups 6 | 3 6 5 7 Power . | . 1 1 . Propulsion 2 | 1 3 2 3 Utility . | . . 1 1 Weapon 1 | . 1 1 2 Tool/Special . | . . . . Unused Backups 6 | . 1 . 5 Power 1 | . 1 . . Propulsion 3 | . . . 3 Utility . | . . . . Weapon 2 | . . . 2 Tool/Special . | . . . . Average Slot Usage (%) 90 | . 90 96 88 Engine 13 | . 9 22 12 Core 1 | . 4 . . Treads 5 | . 14 . . Leg 18 | . 3 13 32 Hover 6 | . 10 16 . Device 1 | . 4 . . Storage 12 | . 14 11 11 Hackware 7 | . 2 11 11 Energy Gun 14 | . 12 22 11 Ballistic Gun 5 | . 15 . . Launcher 1 | . . . 3 Special Weapon 2 | . . . 5 Peak Build Rating 14 | 6 13 12 14 Average Rating 10 | 4 8 11 12 On Entrance 7 | . 6 11 12 Avg Prop Armor Cover (%) 21 | 11 . . 23 Naked Turns . | . . . . Heaviest Build 15 | 12 15 15 15 Greatest Support 40 | 40 40 30 30 Greatest Overweight (x) 4 | . 4 4 3 Average Overweight (x) . | . . . . Largest Inventory Capacity 8 | 8 8 8 8 Average Capacity 7 | 6 8 8 8 Most Carried 8 | 5 8 7 8 Average Carried 6 | 3 6 5 7 Final Capacity 8 | 8 8 8 8 Final Carried 8 | 4 8 6 7 Class Distribution -------------------- 73% | Scavenger-Mutant 26% | Mutant Dominant Class ---------------- Scavenger-Mutant | -10/Materials Scavenger-Mutant | -9/Materials Scavenger-Mutant | -9/Mines Resources | -11 -10 -9 -9 ----------- Run | Yrd Mat Mat Min Matter Collected 607 | 189 287 40 91 Remotely . | . . . . Salvage Created 651 | . 245 291 115 Parts 42 | . 20 12 10 Haulers Intercepted . | . . . . Recyclers Shooed . | . . . . Parts Field Recycled . | . . . . Retrieved Matter . | . . . . Parts Self-Destructed . | . . . . Prevented . | . . . . Parts Restored . | . . . . Kills | -11 -10 -9 -9 ------- Run | Yrd Mat Mat Min Combat Hostiles Destroyed 15 | . 4 5 6 Guns 10 | . 4 5 1 AOE 5 | . . . 5 Classes Destroyed 7 | . 4 1 2 Tunneler 1 | . . . 1 Recycler 2 | . 1 1 . Operator 1 | . 1 . . Watcher 1 | . 1 . . Swarmer 3 | . . . 3 Grunt 11 | . 4 4 3 Brawler 1 | . . 1 . Best Kill Streak 4 | . 2 3 4 Combat Bots Only 3 | . 2 3 3 Max Kills in Single Turn 4 | . 1 2 4 Gunslinging 1 | . . 1 . Exploded 3 | . . . 3 Melee . | . . . . Uniques/NPCs Destroyed . | . . . . Combat | -11 -10 -9 -9 -------- Run | Yrd Mat Mat Min Hostile Shots Fired 76 | . 19 33 24 Missed 23 | . 5 13 5 Hits 53 | . 14 20 19 Melee 1 | . . . 1 Projectile 52 | . 14 20 18 Critical Strikes 1 | . . 1 . Damage Taken 744 | . 168 250 326 Core 143 | . 39 43 61 Absorbed by Shields . | . . . . Core Remaining (%) 92 | 100 84 . . Volleys Fired 80 | 6 18 14 42 Largest 2 | 2 2 2 2 Hottest 165 | 40 105 105 165 Shots Fired 123 | 12 36 24 51 Gun 92 | 12 36 24 20 Cannon . | . . . . Launcher 3 | . . . 3 Special 28 | . . . 28 Kinetic 32 | 12 20 . . Thermal 88 | . 16 24 48 Explosive 3 | . . . 3 Electromagnetic . | . . . . Robot Hit Streak 10 | 8 10 8 7 Robot Miss Streak 3 | 3 3 2 1 Penetration Max . | . . . . Secondary Targets 1 | . . 1 . Max Gunslinging Chain 1 | . . 1 . Shots Hit Robots 64 | 9 24 18 13 Core Hits 29 | 1 11 9 8 Critical Kills . | . . . . Critical Parts Destroyed . | . . . . Critical Strikes 1 | . 1 . . Burn 1 | . 1 . . Melee Attacks . | . . . . Impact . | . . . . Slashing . | . . . . Piercing . | . . . . Sneak Attacks . | . . . . Combat Hostiles . | . . . . Follow-up Attacks . | . . . . Damage Inflicted 1168 | 112 301 260 495 Guns 844 | 112 301 260 171 Cannons . | . . . . Explosions 324 | . . . 324 Melee . | . . . . Ramming . | . . . . Kinetic 308 | 112 196 . . Thermal 578 | . 105 260 213 Explosive 282 | . . . 282 Electromagnetic . | . . . . Impact . | . . . . Slashing . | . . . . Piercing . | . . . . Highest Corruption 3 | . 2 . 3 Average Corruption 2 | . 2 . 3 Corruption Purged . | . . . . Corruption Blocked . | . . . . Effects 5 | . 1 . 4 Message Errors 1 | . 1 . . Matter Fused 2 | . . . 2 Heat Flow Errors 1 | . . . 1 Alerts 1 | . . . 1 Overload Shots . | . . . . Overflow Damage . | . . . . Projectiles . | . . . . Explosions . | . . . . Melee . | . . . . Knockbacks . | . . . . Impact . | . . . . Kinetic . | . . . . Secondary . | . . . . Self-Inflicted Damage 50 | . . . 50 Shots 1 | . . . 1 Rammed . | . . . . Targets Rammed . | . . . . Kicked . | . . . . Crushed . | . . . . Highest Temperature 521 | . 105 521 486 Average Temperature 183 | . 36 229 188 Received Heat Transfer 363 | . 93 150 120 Effects 19 | . . 9 10 Shutdowns 5 | . . 3 2 Energy Bleed 7 | . . 2 5 Interference 4 | . . 2 2 Matter Decay 1 | . . . 1 Short Circuit 1 | . . 1 . Damage (major) 1 | . . 1 . Siege Activations . | . . . . Martial Activations . | . . . . Shielding Activations . | . . . . Robots Disrupted . | . . . . Combat Hostiles . | . . . . Robots Corrupted . | . . . . Combat Hostiles . | . . . . Parts Fried . | . . . . Impact Corruptions . | . . . . Robots Melted . | . . . . Combat Hostiles . | . . . . Parts Melted 3 | . 1 1 1 Heat Transferred 1374 | . 322 595 457 Parts Sabotaged . | . . . . Parts Stolen . | . . . . Parts Stripped . | . . . . Power Chain Reactions . | . . . . Alert | -11 -10 -9 -9 ------- Run | Yrd Mat Mat Min Maximum Alert Level . | . . . . Low Security (%) 100 | 100 100 100 100 Level 1 . | . . . . Level 2 . | . . . . Level 3 . | . . . . Level 4 . | . . . . Level 5 . | . . . . High Security . | . . . . Max Security . | . . . . Peak Influence 154 | . 50 80 154 Initial 27 | . . 4 27 Average 38 | . 12 28 70 Influence Increases 473 | . 117 144 212 Destroy 0b10 Robot/C 300 | . 80 100 120 Destroy 0b10 Robot/NC 25 | . 15 5 5 Destroy Leader 62 | . 22 20 20 Successful Hack 4 | . . 4 . Disable Machine 15 | . . . 15 Destroy Structure 37 | . . . 37 Lose Combat Pursuer 30 | . . 15 15 Influence Decreases 473 | . 105 86 282 Entered New Map 51 | . . 8 43 Time Decay 382 | . 105 68 209 Lost Part 40 | . . 10 30 Squads Dispatched 1 | . 1 . . Investigation . | . . . . Extermination . | . . . . Reinforcement 1 | . 1 . . Assault . | . . . . Garrison . | . . . . Intercept . | . . . . Searches Triggered . | . . . . Construction Impeded . | . . . . Haulers Reinforced . | . . . . Active Scanning Responses . | . . . . Cargo Convoy Interrupts . | . . . . Stealth | -11 -10 -9 -9 --------- Run | Yrd Mat Mat Min Distress Signals . | . . . . Communications Jammed . | . . . . Distress Signals . | . . . . Times Spotted 30 | . 6 7 17 Peak Tracking Total 7 | . 2 4 7 Tactical Retreats 2 | . . 1 1 Traps | -11 -10 -9 -9 ------- Run | Yrd Mat Mat Min Traps Triggered 1 | . 1 . . Indirectly . | . . . . Trap Hack Attempts . | . . . . Triggered . | . . . . Disarmed . | . . . . Reprogrammed . | . . . . Reused . | . . . . Traps Extracted . | . . . . Installed . | . . . . Triggered . | . . . . Machines | -11 -10 -9 -9 ---------- Run | Yrd Mat Mat Min Machines Disabled 1 | . . . 1 Max in Single Turn 1 | . . . 1 Machines Repaired . | . . . . Machines Dismantled . | . . . . Machines Sabotaged . | . . . . Overloaded Fab Kills . | . . . . Hacking | -11 -10 -9 -9 --------- Run | Yrd Mat Mat Min Machines Accessed 3 | . 1 2 . Terminals 1 | . . 1 . Fabricators . | . . . . Repair Stations . | . . . . Recycling Units 1 | . 1 . . Scanalyzers 1 | . . 1 . Garrison Access . | . . . . Total Hacks 9 | . 2 7 . Successful 4 | . 1 3 . Failed 4 | . 1 3 . Catastrophic . | . . . . Database Lockouts 1 | . . 1 . Manual . | . . . . Terminals 4 | . . 4 . Fabricators . | . . . . Repair Stations . | . . . . Recycling Units 2 | . 2 . . Scanalyzers 3 | . . 3 . Garrison Access . | . . . . Terminal Hacks 2 | . . 2 . Terminal Index 1 | . . 1 . Hauler Manifests 1 | . . 1 . Fabricator Hacks . | . . . . Repair Station Hacks . | . . . . Recycling Unit Hacks 1 | . 1 . . Retrieve Components 1 | . 1 . . Scanalyzer 1 | . . 1 . Retrieve Study 1 | . . 1 . Garrison Access Hacks . | . . . . Unauthorized Hacks . | . . . . Terminals . | . . . . Fabricators . | . . . . Repair Stations . | . . . . Recycling Units . | . . . . Scanalyzers . | . . . . Garrison Access . | . . . . Data Cores Recovered . | . . . . Used . | . . . . Hacking Detections 3 | . 1 2 . Full Trace Events . | . . . . Feedback Events . | . . . . Feedback Blocked . | . . . . Robot Schematics Acquired . | . . . . Robots Built . | . . . . Authchips . | . . . . Time . | . . . . Total Robot Build Rating . | . . . . Part Schematics Acquired . | . . . . Parts Built . | . . . . Authchips . | . . . . Time . | . . . . Total Part Build Rating . | . . . . Part Studies Acquired 1 | . . 1 . Parts Repaired . | . . . . Time . | . . . . Parts Recycled . | . . . . Recycled Matter . | . . . . Retrieved Matter . | . . . . Retrieved Components . | . . . . Parts Scanalyzed . | . . . . Part Schematics Acquired . | . . . . Parts Damaged . | . . . . Bothacking | -11 -10 -9 -9 ------------ Run | Yrd Mat Mat Min Used RIF Installer . | . . . . Robots Hacked . | . . . . Non-combat . | . . . . Combat . | . . . . Robot Hacks Applied . | . . . . Relay Couplers Released . | . . . . Fabnet Peak Effective % . | . . . . Robots Rewired . | . . . . Allies Hacked . | . . . . Hacks Repelled . | . . . . Allies | -11 -10 -9 -9 -------- Run | Yrd Mat Mat Min Total Allies . | . . . . Largest Group . | . . . . Highest-Rated Group . | . . . . Highest-Rated Ally . | . . . . Total Orders . | . . . . Ally Attacks . | . . . . Total Damage . | . . . . Kills . | . . . . Allies Corrupted . | . . . . Allies Melted . | . . . . Intel | -11 -10 -9 -9 ------- Run | Yrd Mat Mat Min Active Infowar (turns) . | . . . . Robot Analysis Total . | . . . . Derelict Logs Recovered 1 | . . . 1 Drone Launches . | . . . . Drone Recoveries . | . . . . Exploration | -11 -10 -9 -9 ------------- Run | Yrd Mat Mat Min Turns Passed 1200 | 94 410 210 486 Spaces Moved 648 | 42 289 117 200 Core 43 | 3 4 1 35 Treads 136 | 35 101 . . Legs 267 | 4 24 74 165 Wheels . | . . . . Hover 202 | . 160 42 . Flight . | . . . . Fastest Speed 50 | 50 56 52 105 Average Speed 113 | 148 111 90 121 Slowest Speed 250 | 160 250 250 200 Overloaded Moves . | . . . . Propulsion Burnouts . | . . . . Robots Hopped . | . . . . Potential Cave-ins . | . . . . Cave-ins Triggered . | . . . . Exploration Rate (%) 31 | 4 61 19 43 Regions Visited 3 Branch Regions 1 Pre-discovered Areas 1 | . . . 1 Known Exits Taken . | . . . . Unknown Exits Taken 3 | 1 1 1 . Scrap Searched . | . . . . Spaces Dug 15 | . . . 15 Terrain Destroyed 57 | . . . 57 Melee . | . . . . Projectile 17 | . . . 17 AOE 40 | . . . 40 Terrain Rammed . | . . . . Walls Destroyed . | . . . . Machines Disabled . | . . . . Actions | -11 -10 -9 -9 --------- Run | Yrd Mat Mat Min Total 932 | 60 341 197 334 Wait 147 | . 9 58 80 Move 645 | 41 288 116 200 Hop . | . . . . Pick Up 17 | 5 7 3 2 Fast Attach 11 | 5 4 . 2 Attach 10 | 2 2 5 1 Detach 2 | 1 . . 1 Swap 9 | . 5 . 4 Drop 11 | . 8 1 2 Fire 80 | 6 18 14 42 Melee . | . . . . Ram . | . . . . Kick . | . . . . Crush . | . . . . Escape Stasis . | . . . . Rewire . | . . . . Trap . | . . . . Miscellaneous . | . . . . Route ------- -11/Scrapyard -10/Materials (discovered 2 exits: *Mat / [*Min]) -9/Materials -9/Mines History --------- Turn | Location | Event 2 | -11/Scrapyard | Met Revision 17 20 | -11/Scrapyard | Discovered new exit (range 16) 95 | -11/Scrapyard | Entered Materials 132 | -10/Materials | Discovered new exit (range 8) 498 | -10/Materials | Discovered new exit (range 10) 505 | -10/Materials | Entered another Materials area 505 | -9/Materials | Evolved 2 slots: Power x1, Propulsion x1 603 | -9/Materials | Build established: Scavenger-Mutant 646 | -9/Materials | Central database locked down 690 | -9/Materials | Discovered new exit (range 13) 715 | -9/Materials | Entered Mines 722 | -9/Mines | Received a Rocket Launcher from a helpful Derelict 735 | -9/Mines | Learned location of Zion (-7) 764 | -9/Mines | Met a Derelict bent on vengeance 880 | -9/Mines | Assembled infested the area 1201 | -9/Mines | Self-destructed Last Messages --------------- 13-PTM(g) destroyed. T-07 Excavator is excavating. Overheating: System interference. Particle Gun temporarily disabled. T-07 Excavator is excavating. Overheating: Energy bleed (-10). Overheating: Energy bleed (-20). T-07 Excavator is excavating. System corrupted: Heat flow error (+263). T-07 Excavator is excavating. Power failure, Lgt. Ion Engine shutdown. Overheating: Matter decay (-70). T-07 Excavator is excavating. Overheating: Energy bleed (-26). System corrupted: IFF burst signal emitted. T-07 Excavator is excavating. System corrupted: Matter fused (-6). T-07 Excavator destroyed. Acquired 18 matter. Mining Laser destroyed. Map ----- +----------------------------------------------------+ | ?????? ?????????????# #??????????????????? | | ??????? ?? ?????????# #??????????????????? | | ?????????? ? ####### ##?????????????????? | | ??????????# ?? #?????????????????? | | ??????????????? #?????????????????? | | ??????????????? ##### #?????????????????? | | ???????????????? ????????# #?????????????????? | | ????????????????????????????# #?????????????????? | | ????????????????????????????# #?#####???????????? | | ????????????????????????????# ### ##??????????? | | ????????????????????????????# #??????????? | | ???????????????????????????# """ #??????????? | | ???????????????????????????# """ #######????? | | ???????????????????????????# """ ## #????? | | ???????????????????????????## #????? | | ????????????????????????????## ##### #????? | | ?????????????????????????????# #???## ##???? | | ?????#####???????????????????# #???? % #???? | | ?????# #??????????????????? ???? # #???? | | ???### ##?????????????????? ### # #???? | | ???# ####???????????????### # #% # #???? | | ##### #??????????????### !=%! #???? | | # ## #?????????????## *# #???? | | ### #?????????????# # #???? | | ##?# ############### ####??? % ##???? | | ##??# |@ * ##???????# ??? | | #???################= ##????????# ? | | #### ###??????????????????####?????????#######??## | | ???##????????????????????????????????????????????? | | ?????????????????????????????????????????????????? | | ?????????????????????????????????????????????????? | | ?????????????????????????????????????????????????? | | | | | | | | | | | | | | | | | | | | | | | | | | | | | | | | | | | | | +----------------------------------------------------+ Best States ------------- Heat Dissipation 39 Energy Generation 15 Energy Capacity 160 Matter Stores 300 Matter Capacity 300 Sight Range 16 Terrain Scan Density 10 Evasion (%) 55 Recoil Reduction 2 Offensive Hacking 10 Item Schematics ----------------- None Robot Schematics ------------------ None Fabricated ------------ Nothing Repaired ---------- Nothing Studied --------- Aluminum Leg | -9/Materials | Hacked Alien Tech Used ----------------- None Achievements -------------- None Challenges ------------ None Game ------ Seed AssembledTowerTerminator Manual? 0 Play Time 00:20:51 Cumulative 49.4 hours Start 2026.07.17 @ 19:15:42 End 2026.07.17 @ 22:44:17 Sessions 1 Manual Loads 0 Difficulty Rogue Special Mode None Game No. 62 Rogue 62 Adventurer 0 Explorer 0 Win Type - Total 0 Types 0/0/0/0/0/0/0/0/0/0 Lore% 42 Gallery% 31 Achievement% 28 Wizard Run 0 Options --------- Layout 1 ASCII 0 Keyboard 0 Movement Mouse Keybinds 0 Fullscreen 2 Font 18/SmallcapsGlow Map View 51x41 Zoom Use 0% Tactical HUD 0 Map Filters NONE Filters NONE Steam 1 RUN: 0e946e4c-96ac-4dcc-a75a-619bff018cf6